fUST/lending_fUST_20250408
["ID","MTS","AMOUNT","RATE_DAILY","PERIOD"]
[357458716,1744073480133,-523.31,0.00026575,2]
[357458717,1744073480143,-1890.65,0.00026575,2]
[357458718,1744073480152,-232.67999353,0.00026575,2]
[357458719,1744073480163,-1098.37,0.00026575,2]
[357458720,1744073480172,-160.0,0.00026684,6]
[357458721,1744073480182,-594.95,0.00026849,2]
[357458722,1744073480191,-507.25,0.00026849,2]
[357458723,1744073480201,-1284.95,0.00026849,2]
[357458724,1744073480211,-519.3,0.00026849,2]
[357458725,1744073480221,-515.54,0.00026849,2]
[357458726,1744073480230,-774.11,0.00026849,2]
[357458727,1744073480241,-500.0,0.00026849,2]
[357458728,1744073480250,-500.0,0.00026849,2]
[357458729,1744073480260,-500.0,0.00026849,2]
[357458730,1744073480269,-500.0,0.00026849,2]
[357458731,1744073480280,-637.58,0.00026849,2]
[357458732,1744073480290,-619.99,0.00026849,2]
[357458733,1744073480299,-245.1,0.00026849,2]
[357458734,1744073480309,-500.0,0.00026849,2]
[357458735,1744073480318,-551.52,0.00026849,2]
[357458736,1744073480328,-762.18,0.00026849,2]
[357458737,1744073480338,-424.59,0.00026849,2]
[357458738,1744073480347,-610.61,0.00026849,2]
[357458739,1744073480357,-798.41,0.00026849,2]
[357458740,1744073480367,-666.56,0.00026849,2]
[357458741,1744073480376,-500.0,0.00026849,2]
[357458742,1744073480385,-568.42,0.00026849,2]
[357458743,1744073480395,-595.32,0.00026849,2]
[357458744,1744073480405,-500.0,0.00026849,2]
[357458745,1744073480415,-1478.81,0.00026849,2]
[357458746,1744073480425,-523.17,0.00026849,2]
[357458747,1744073480435,-1266.69,0.00026849,2]
[357458748,1744073480444,-1197.93,0.00026849,2]
[357458749,1744073480454,-528.61,0.00026849,2]
[357458750,1744073480464,-878.01,0.00026849,2]
[357458751,1744073480474,-500.0,0.00026849,2]
[357458752,1744073480484,-581.98274341,0.00026849,2]
[357458753,1744073480493,-344.17077606,0.00026849,2]
[357458754,1744073480503,-993.51,0.00026849,2]
[357458755,1744073480513,-1465.53,0.00026849,2]
[357458756,1744073480522,-500.0,0.00026849,2]
[357458757,1744073480532,-276.73551147,0.00026849,2]
[357458758,1744073480542,-545.8,0.00026849,2]
[357458759,1744073480551,-689.47,0.00026849,2]
[357458760,1744073480561,-531.41683324,0.00026849,2]
[357458761,1744073480571,-591.84,0.00026849,2]
[357458762,1744073480580,-500.0,0.00026849,2]
[357458763,1744073480590,-1000.21,0.00026849,2]
[357458764,1744073480600,-1104.26,0.00026849,2]
[357458765,1744073480610,-518.15,0.00026849,2]
[357458766,1744073480620,-500.0,0.00026849,2]
[357458767,1744073480629,-500.0,0.00026849,2]
[357458768,1744073480640,-166.24027391,0.00026849,2]
[357458769,1744073480650,-1404.5,0.00026849,2]
[357458770,1744073480660,-522.25,0.00026849,2]
[357458771,1744073480670,-1550.56,0.00026849,2]
[357458772,1744073480680,-559.21,0.00026849,2]
[357458773,1744073480691,-1304.88,0.00026849,2]
[357458774,1744073480701,-2906.86,0.00026849,2]
[357458775,1744073480713,-567.46,0.00026849,2]
[357458776,1744073480723,-636.08,0.00026849,2]
[357458777,1744073480733,-1332.6,0.00026849,2]
[357458778,1744073480742,-2435.82,0.00026849,2]
[357458779,1744073480752,-564.44,0.00026849,2]
[357458780,1744073480761,-816.67,0.00026849,2]
[357458781,1744073480772,-2284.41,0.00026849,2]
[357458782,1744073480782,-539.99,0.00026849,2]
[357458783,1744073480792,-774.84,0.00026849,2]
[357458784,1744073480801,-1559.28,0.00026849,2]
[357458785,1744073480902,-1168.9,0.00026849,2]
[357458786,1744073480912,-2749.42,0.00026849,2]
[357458787,1744073480922,-1353.57,0.00026849,2]
[357458788,1744073480936,-500.0,0.00026849,2]
[357458789,1744073480946,-1377.29,0.00026849,2]
[357458790,1744073480956,-311.36505176,0.00026849,2]
[357458791,1744073480965,-2417.25,0.00026849,2]
[357458792,1744073480975,-5291.2,0.00026849,2]
[357458793,1744073480987,-1100.81,0.00026849,2]
[357458794,1744073480996,-467.03,0.00026849,2]
[357458795,1744073481006,-3065.26,0.00026849,2]
[357458796,1744073481016,-1661.41,0.00026849,2]
[357458797,1744073481026,-957.37,0.00026849,2]
[357458798,1744073481036,-500.0,0.00026849,2]
[357458799,1744073481046,-1814.5,0.00026849,2]
[357458800,1744073481056,-1937.54,0.00026849,2]
[357458801,1744073481067,-631.45,0.00026849,2]
[357458802,1744073481076,-500.0,0.00026849,2]
[357458803,1744073481087,-500.0,0.00026849,2]
[357458804,1744073481097,-1807.0,0.00026849,2]
[357458805,1744073481107,-1563.99,0.00026849,2]
[357458806,1744073481118,-765.88,0.00026849,2]
[357458807,1744073481128,-500.0,0.00026849,2]
[357458808,1744073481137,-500.0,0.00026849,2]
[357458809,1744073481147,-1094.87,0.00026849,2]
[357458810,1744073481158,-844.05,0.00026849,2]
[357458811,1744073481168,-1239.2,0.00026849,2]
[357458812,1744073481179,-993.95,0.00026849,2]
[357458813,1744073481189,-1205.59,0.00026849,2]
[357458814,1744073481199,-500.0,0.00026849,2]
[357458815,1744073481209,-1288.17,0.00026849,2]
[357458816,1744073481219,-500.0,0.00026849,2]
[357458817,1744073481229,-1146.31,0.00026849,2]
[357458818,1744073481238,-8516.27,0.00026849,2]
[357458819,1744073481248,-515.27,0.00026849,2]
[357458820,1744073481258,-500.0,0.00026849,2]
[357458821,1744073481268,-808.45,0.00026849,2]
[357458822,1744073481279,-1749.01,0.00026849,2]
[357458823,1744073481289,-2424.22,0.00026849,2]
[357458824,1744073481299,-1135.59,0.00026849,2]
[357458825,1744073481309,-523.31,0.00026849,2]
[357458826,1744073481320,-1890.65,0.00026849,2]
[357458827,1744073481330,-1098.37,0.00026849,2]
[357458828,1744073481339,-160.0,0.00026897,7]
[357458829,1744073481349,-160.0,0.00026934,7]
[357458830,1744073481359,-783.73948285,0.00026934,7]
[357458831,1744073481369,-419.36665037,0.00026934,7]
[357458832,1744073481380,-823.0,0.00027046,2]
[357458833,1744073481390,-160.0,0.00027109,8]
[357458834,1744073481400,-160.0,0.00027109,5]
[357458835,1744073481411,-594.95,0.00027123,2]
[357458836,1744073481420,-507.25,0.00027123,2]
[357458837,1744073481430,-1284.95,0.00027123,2]
[357458838,1744073481441,-519.3,0.00027123,2]
[357458839,1744073481452,-515.54,0.00027123,2]
[357458840,1744073481462,-774.11,0.00027123,2]
[357458841,1744073481473,-500.0,0.00027123,2]
[357458842,1744073481483,-500.0,0.00027123,2]
[357458843,1744073481492,-500.0,0.00027123,2]
[357458844,1744073481502,-500.0,0.00027123,2]
[357458845,1744073481511,-637.58,0.00027123,2]
[357458846,1744073481521,-619.99,0.00027123,2]
[357458847,1744073481537,-500.0,0.00027123,2]
[357458848,1744073481563,-551.52,0.00027123,2]
[357458849,1744073481585,-762.18,0.00027123,2]
[357458850,1744073481608,-610.61,0.00027123,2]
[357458851,1744073481633,-798.41,0.00027123,2]
[357458852,1744073481654,-666.56,0.00027123,2]
[357458853,1744073481676,-500.0,0.00027123,2]
[357458854,1744073481693,-568.42,0.00027123,2]
[357458855,1744073481713,-595.32,0.00027123,2]
[357458856,1744073481734,-500.0,0.00027123,2]
[357458857,1744073481759,-1478.81,0.00027123,2]
[357458858,1744073481773,-523.17,0.00027123,2]
[357458859,1744073481794,-1266.69,0.00027123,2]
[357458860,1744073481813,-1197.93,0.00027123,2]
[357458861,1744073481832,-528.61,0.00027123,2]
[357458862,1744073481850,-878.01,0.00027123,2]
[357458863,1744073481869,-500.0,0.00027123,2]
[357458864,1744073481887,-993.51,0.00027123,2]
[357458865,1744073481905,-1465.53,0.00027123,2]
[357458866,1744073481922,-440.0989177,0.00027123,2]
[357458867,1744073481949,-545.8,0.00027123,2]
[357458868,1744073481967,-689.47,0.00027123,2]
[357458869,1744073481984,-591.84,0.00027123,2]
[357458870,1744073482001,-500.0,0.00027123,2]
[357458871,1744073482018,-1000.21,0.00027123,2]
[357458872,1744073482035,-1104.26,0.00027123,2]
[357458873,1744073482052,-518.15,0.00027123,2]
[357458874,1744073482069,-500.0,0.00027123,2]
[357458875,1744073482085,-634.94,0.00027123,2]
[357458876,1744073482104,-1404.5,0.00027123,2]
[357458877,1744073482121,-522.25,0.00027123,2]
[357458878,1744073482139,-1550.56,0.00027123,2]
[357458879,1744073482156,-559.21,0.00027123,2]
[357458880,1744073482174,-1304.88,0.00027123,2]
[357458881,1744073482191,-2906.86,0.00027123,2]
[357458882,1744073482208,-567.46,0.00027123,2]
[357458883,1744073482226,-636.08,0.00027123,2]
[357458884,1744073482243,-1332.6,0.00027123,2]
[357458885,1744073482260,-2435.82,0.00027123,2]
[357458886,1744073482277,-564.44,0.00027123,2]
[357458887,1744073482294,-816.67,0.00027123,2]
[357458888,1744073482313,-2284.41,0.00027123,2]
[357458889,1744073482330,-539.99,0.00027123,2]
[357458890,1744073482346,-774.84,0.00027123,2]
[357458891,1744073482362,-1559.28,0.00027123,2]
[357458892,1744073482380,-1168.9,0.00027123,2]
[357458893,1744073482396,-2749.42,0.00027123,2]
[357458894,1744073482413,-1353.57,0.00027123,2]
[357458895,1744073482430,-1377.29,0.00027123,2]
[357458896,1744073482446,-2417.25,0.00027123,2]
[357458897,1744073482463,-5291.2,0.00027123,2]
[357458898,1744073482480,-1100.81,0.00027123,2]
[357458899,1744073482496,-3065.26,0.00027123,2]
[357458900,1744073482513,-1661.41,0.00027123,2]
[357458901,1744073482530,-957.37,0.00027123,2]
[357458902,1744073482549,-500.0,0.00027123,2]
[357458903,1744073482565,-1814.5,0.00027123,2]
[357458904,1744073482582,-1937.54,0.00027123,2]
[357458905,1744073482599,-631.45,0.00027123,2]
[357458906,1744073482618,-500.0,0.00027123,2]
[357458907,1744073482634,-500.0,0.00027123,2]
[357458908,1744073482653,-1807.0,0.00027123,2]
[357458909,1744073482671,-1563.99,0.00027123,2]
[357458910,1744073482833,-765.88,0.00027123,2]
[357458911,1744073482845,-500.0,0.00027123,2]
[357458912,1744073482855,-500.0,0.00027123,2]
[357458913,1744073482865,-151.0,0.00027123,7]
[357458914,1744073482875,-151.0,0.00027123,7]
[357458915,1744073482884,-151.0,0.00027123,7]
[357458916,1744073482894,-1094.87,0.00027123,2]
[357458917,1744073482904,-151.0,0.00027123,7]
[357458918,1744073482913,-844.05,0.00027123,2]
[357458919,1744073482923,-1239.2,0.00027123,2]
[357458920,1744073482933,-993.95,0.00027123,2]
[357458921,1744073482944,-1205.59,0.00027123,2]
[357458922,1744073482954,-500.0,0.00027123,2]
[357458923,1744073482964,-1288.17,0.00027123,2]
[357458924,1744073482973,-626.78,0.00027123,2]
[357458925,1744073482983,-1146.31,0.00027123,2]
[357458926,1744073482993,-8516.27,0.00027123,2]
[357458927,1744073483003,-515.27,0.00027123,2]
[357458928,1744073483014,-500.0,0.00027123,2]
[357458929,1744073483026,-808.45,0.00027123,2]
[357458930,1744073483036,-1749.01,0.00027123,2]
[357458931,1744073483045,-2424.22,0.00027123,2]
[357458932,1744073483055,-1135.59,0.00027123,2]
[357458933,1744073483065,-523.31,0.00027123,2]
[357458934,1744073483074,-1890.65,0.00027123,2]
[357458935,1744073483084,-1098.37,0.00027123,2]
[357458936,1744073483093,-150.0,0.00027212,2]
[357458937,1744073483103,-543.0,0.00027212,2]
[357458938,1744073483113,-2254.0,0.00027212,2]
[357458939,1744073483123,-251.104,0.00027212,2]
[357458940,1744073483132,-150.0,0.00027212,2]
[357458941,1744073483142,-150.0,0.00027212,2]
[357458942,1744073483151,-150.0,0.00027212,2]
[357458943,1744073483161,-594.95,0.00027397,2]
[357458944,1744073483171,-507.25,0.00027397,2]
[357458945,1744073483180,-1284.95,0.00027397,2]
[357458946,1744073483190,-519.3,0.00027397,2]
[357458947,1744073483200,-515.54,0.00027397,2]
[357458948,1744073483209,-774.11,0.00027397,2]
[357458949,1744073483219,-500.0,0.00027397,2]
[357458950,1744073483228,-339.96220746,0.00027397,2]
[357458951,1744073483238,-500.0,0.00027397,2]
[357458952,1744073483248,-549.5,0.00027397,2]
[357458953,1744073483257,-637.58,0.00027397,2]
[357458954,1744073483267,-619.99,0.00027397,2]
[357458955,1744073483276,-500.0,0.00027397,2]
[357458956,1744073483286,-551.52,0.00027397,2]
[357458957,1744073483295,-762.18,0.00027397,2]
[357458958,1744073483304,-610.61,0.00027397,2]
[357458959,1744073483314,-798.41,0.00027397,2]
[357458960,1744073483323,-666.56,0.00027397,2]
[357458961,1744073483333,-500.0,0.00027397,2]
[357458962,1744073483342,-568.42,0.00027397,2]
[357458963,1744073483351,-595.32,0.00027397,2]
[357458964,1744073483361,-500.0,0.00027397,2]
[357458965,1744073483371,-1478.81,0.00027397,2]
[357458966,1744073483381,-523.17,0.00027397,2]
[357458967,1744073483390,-1266.69,0.00027397,2]
[357458968,1744073483399,-200.0,0.00027397,2]
[357458969,1744073483411,-1197.93,0.00027397,2]
[357458970,1744073483422,-528.61,0.00027397,2]
[357458971,1744073483432,-878.01,0.00027397,2]
[357458972,1744073483443,-394.68904448,0.00027397,2]
[357458973,1744073483454,-252.3801,0.00027397,7]
[357458974,1744073483466,-252.3801,0.00027397,7]
[357458975,1744073483479,-993.51,0.00027397,2]
[357458976,1744073483489,-1465.53,0.00027397,2]
[357458977,1744073483503,-169.421274,0.00027397,7]
[357458978,1744073483512,-169.421274,0.00027397,7]
[357458979,1744073483521,-155.521452,0.00027397,7]
[357458980,1744073483531,-545.8,0.00027397,2]
[357458981,1744073483540,-151.0,0.00027397,2]
[357458982,1744073483550,-689.47,0.00027397,2]
[357458983,1744073483559,-591.84,0.00027397,2]
[357458984,1744073483569,-500.0,0.00027397,2]
[357458985,1744073483578,-1000.21,0.00027397,2]
[357458986,1744073483588,-1104.26,0.00027397,2]
[357458987,1744073483597,-518.15,0.00027397,2]
[357458988,1744073483607,-343.9182,0.00027397,2]
[357458989,1744073483617,-181.087541,0.00027397,2]
[357458990,1744073483627,-181.087541,0.00027397,2]
[357458991,1744073483636,-500.0,0.00027397,2]
[357458992,1744073483646,-1404.5,0.00027397,2]
[357458993,1744073483656,-522.25,0.00027397,2]
[357458994,1744073483666,-1550.56,0.00027397,2]
[357458995,1744073483675,-559.21,0.00027397,2]
[357458996,1744073483684,-1304.88,0.00027397,2]
[357458997,1744073483695,-2906.86,0.00027397,2]
[357458998,1744073483704,-636.08,0.00027397,2]
[357458999,1744073483714,-567.46,0.00027397,2]
[357459000,1744073483723,-1332.6,0.00027397,2]
[357459001,1744073483733,-2435.82,0.00027397,2]
[357459002,1744073483743,-564.44,0.00027397,2]
[357459003,1744073483753,-816.67,0.00027397,2]
[357459004,1744073483763,-2284.41,0.00027397,2]
[357459005,1744073483772,-539.99,0.00027397,2]
[357459006,1744073483781,-774.84,0.00027397,2]
[357459007,1744073483791,-1559.28,0.00027397,2]
[357459008,1744073483801,-1168.9,0.00027397,2]
[357459009,1744073483811,-2749.42,0.00027397,2]
[357459010,1744073483821,-1353.57,0.00027397,2]
[357459011,1744073483832,-1377.29,0.00027397,2]
[357459012,1744073483843,-2417.25,0.00027397,2]
[357459013,1744073483853,-5291.2,0.00027397,2]
[357459014,1744073483863,-1100.81,0.00027397,2]
[357459015,1744073483873,-3065.26,0.00027397,2]
[357459016,1744073483883,-1661.41,0.00027397,2]
[357459017,1744073483893,-957.37,0.00027397,2]
[357459018,1744073483902,-500.0,0.00027397,2]
[357459019,1744073483913,-1814.5,0.00027397,2]
[357459020,1744073483923,-1937.54,0.00027397,2]
[357459021,1744073483933,-631.45,0.00027397,2]
[357459022,1744073483946,-500.0,0.00027397,2]
[357459023,1744073483956,-500.0,0.00027397,2]
[357459024,1744073483967,-1807.0,0.00027397,2]
[357459025,1744073483977,-1563.99,0.00027397,2]
[357459026,1744073483987,-765.88,0.00027397,2]
[357459027,1744073483997,-500.0,0.00027397,2]
[357459028,1744073484006,-151.0,0.00027397,7]
[357459029,1744073484018,-500.0,0.00027397,2]
[357459030,1744073484028,-1094.87,0.00027397,2]
[357459031,1744073484038,-844.05,0.00027397,2]
[357459032,1744073484048,-1239.2,0.00027397,2]
[357459033,1744073484058,-993.95,0.00027397,2]
[357459034,1744073484069,-1205.59,0.00027397,2]
[357459035,1744073484079,-500.0,0.00027397,2]
[357459036,1744073484089,-1288.17,0.00027397,2]
[357459037,1744073484098,-1146.31,0.00027397,2]
[357459038,1744073484108,-8516.27,0.00027397,2]
[357459039,1744073484118,-515.27,0.00027397,2]
[357459040,1744073484127,-808.45,0.00027397,2]
[357459041,1744073484136,-1749.01,0.00027397,2]
[357459042,1744073484146,-2424.22,0.00027397,2]
[357459043,1744073484156,-1135.59,0.00027397,2]
[357459044,1744073484166,-523.31,0.00027397,2]
[357459045,1744073484177,-1890.65,0.00027397,2]
[357459046,1744073484186,-1098.37,0.00027397,2]
[357459047,1744073484196,-151.165071,0.00027397,7]
[357459048,1744073484206,-159.06929,0.00027397,120]
[357459049,1744073484216,-250.0,0.00027397,5]
[357459050,1744073484226,-150.02917877,0.00027397,5]
[357459051,1744073484237,-500.0,0.00027397,5]
[357459052,1744073484248,-12527.9349248,0.000274,7]
[357459053,1744073484258,-1000.0,0.00027452,5]
[357459054,1744073484268,-1000.0,0.00027452,5]
[357459055,1744073484278,-1000.0,0.00027452,5]
[357459056,1744073484288,-1000.0,0.00027452,5]
[357459057,1744073484297,-1000.0,0.00027452,5]
[357459058,1744073484307,-1000.0,0.00027452,2]
[357459059,1744073484317,-1000.0,0.00027452,5]
[357459060,1744073484451,-594.65960246,0.00027652,5]
[357459061,1744073484461,-1000.0,0.00027652,5]
[357459062,1744073484471,-1000.0,0.00027652,5]
[357459063,1744073484481,-1000.0,0.00027652,5]
[357459064,1744073484492,-1000.0,0.00027652,5]
[357459065,1744073484501,-1000.0,0.00027652,5]
[357459066,1744073484511,-386.77716487,0.00027652,5]
[357459067,1744073484520,-1000.0,0.00027652,5]
[357459068,1744073484530,-23331.94486154,0.00027671,3]
[357459069,1744073484540,-34382.80591172,0.00027671,2]
[357459070,1744073484550,-594.95,0.00027671,2]
[357459071,1744073484559,-507.25,0.00027671,2]
[357459072,1744073484570,-1284.95,0.00027671,2]
[357459073,1744073484580,-519.3,0.00027671,2]
[357459074,1744073484591,-515.54,0.00027671,2]
[357459075,1744073484601,-774.11,0.00027671,2]
[357459076,1744073484610,-249.82684509,0.00027671,2]
[357459077,1744073484620,-500.0,0.00027671,2]
[357459078,1744073484630,-637.58,0.00027671,2]
[357459079,1744073484640,-619.99,0.00027671,2]
[357459080,1744073484650,-383.08,0.00027671,2]
[357459081,1744073484663,-551.52,0.00027671,2]
[357459082,1744073484673,-762.18,0.00027671,2]
[357459083,1744073484682,-610.61,0.00027671,2]
[357459084,1744073484692,-798.41,0.00027671,2]
[357459085,1744073484701,-666.56,0.00027671,2]
[357459086,1744073484711,-159.53,0.00027671,2]
[357459087,1744073484721,-568.42,0.00027671,2]
[357459088,1744073484731,-595.32,0.00027671,2]
[357459089,1744073484741,-500.0,0.00027671,2]
[357459090,1744073484751,-1478.81,0.00027671,2]
[357459091,1744073484760,-523.17,0.00027671,2]
[357459092,1744073484770,-1266.69,0.00027671,2]
[357459093,1744073484780,-1197.93,0.00027671,2]
[357459094,1744073484790,-528.61,0.00027671,2]
[357459095,1744073484800,-878.01,0.00027671,2]
[357459096,1744073484810,-993.51,0.00027671,2]
[357459097,1744073484819,-1465.53,0.00027671,2]
[357459098,1744073484829,-545.8,0.00027671,2]
[357459099,1744073484839,-689.47,0.00027671,2]
[357459100,1744073484848,-591.84,0.00027671,2]
[357459101,1744073484857,-500.0,0.00027671,2]
[357459102,1744073484867,-1000.21,0.00027671,2]
[357459103,1744073484877,-1104.26,0.00027671,2]
[357459104,1744073484886,-518.15,0.00027671,2]
[357459105,1744073484896,-500.0,0.00027671,2]
[357459106,1744073484906,-1404.5,0.00027671,2]
[357459107,1744073484919,-522.25,0.00027671,2]
[357459108,1744073484929,-1550.56,0.00027671,2]
[357459109,1744073484942,-559.21,0.00027671,2]
[357459110,1744073484952,-1304.88,0.00027671,2]
[357459111,1744073484963,-2906.86,0.00027671,2]
[357459112,1744073484973,-636.08,0.00027671,2]
[357459113,1744073484983,-567.46,0.00027671,2]
[357459114,1744073484994,-1332.6,0.00027671,2]
[357459115,1744073485004,-2435.82,0.00027671,2]
[357459116,1744073485014,-564.44,0.00027671,2]
[357459117,1744073485026,-816.67,0.00027671,2]
[357459118,1744073485037,-2284.41,0.00027671,2]
[357459119,1744073485047,-539.99,0.00027671,2]
[357459120,1744073485059,-774.84,0.00027671,2]
[357459121,1744073485070,-1559.28,0.00027671,2]
[357459122,1744073485081,-1168.9,0.00027671,2]
[357459123,1744073485091,-2749.42,0.00027671,2]
[357459124,1744073485101,-1353.57,0.00027671,2]
[357459125,1744073485112,-1377.29,0.00027671,2]
[357459126,1744073485123,-2417.25,0.00027671,2]
[357459127,1744073485133,-5291.2,0.00027671,2]
[357459128,1744073485144,-1100.81,0.00027671,2]
[357459129,1744073485154,-3065.26,0.00027671,2]
[357459130,1744073485170,-1661.41,0.00027671,2]
[357459131,1744073485181,-957.37,0.00027671,2]
[357459132,1744073485191,-545.6,0.00027671,2]
[357459133,1744073485201,-1814.5,0.00027671,2]
[357459134,1744073485211,-1937.54,0.00027671,2]
[357459135,1744073485220,-631.45,0.00027671,2]
[357459136,1744073485230,-500.0,0.00027671,2]
[357459137,1744073485240,-320.1,0.00027671,2]
[357459138,1744073485250,-1807.0,0.00027671,2]
[357459139,1744073485260,-1563.99,0.00027671,2]
[357459140,1744073485271,-765.88,0.00027671,2]
[357459141,1744073485280,-264.06,0.00027671,2]
[357459142,1744073485290,-587.18,0.00027671,2]
[357459143,1744073485300,-1094.87,0.00027671,2]
[357459144,1744073485310,-844.05,0.00027671,2]
[357459145,1744073485320,-1239.2,0.00027671,2]
[357459146,1744073485330,-993.95,0.00027671,2]
[357459147,1744073485339,-1205.59,0.00027671,2]
[357459148,1744073485350,-500.0,0.00027671,2]
[357459149,1744073485359,-1288.17,0.00027671,2]
[357459150,1744073485370,-1146.31,0.00027671,2]
[357459151,1744073485379,-8516.27,0.00027671,2]
[357459152,1744073485389,-515.27,0.00027671,2]
[357459153,1744073485398,-808.45,0.00027671,2]
[357459154,1744073485410,-1749.01,0.00027671,2]
[357459155,1744073485420,-2424.22,0.00027671,2]
[357459156,1744073485429,-1135.59,0.00027671,2]
[357459157,1744073485439,-523.31,0.00027671,2]
[357459158,1744073485449,-1890.65,0.00027671,2]
[357459159,1744073485458,-1098.37,0.00027671,2]
[357459160,1744073485468,-239.84119403,0.00027849,2]
[357459161,1744073485478,-4537.56647552,0.00027866,7]
[357459162,1744073485487,-594.95,0.00027945,2]
[357459163,1744073485497,-507.25,0.00027945,2]
[357459164,1744073485507,-1284.95,0.00027945,2]
[357459165,1744073485516,-519.3,0.00027945,2]
[357459166,1744073485526,-515.54,0.00027945,2]
[357459167,1744073485535,-774.11,0.00027945,2]
[357459168,1744073485545,-565.11,0.00027945,2]
[357459169,1744073485555,-637.58,0.00027945,2]
[357459170,1744073485564,-619.99,0.00027945,2]
[357459171,1744073485574,-551.52,0.00027945,2]
[357459172,1744073485583,-762.18,0.00027945,2]
[357459173,1744073485593,-290.742792,0.00027945,7]
[357459174,1744073485603,-610.61,0.00027945,2]
[357459175,1744073485612,-290.742792,0.00027945,7]
[357459176,1744073485622,-798.41,0.00027945,2]
[357459177,1744073485631,-666.56,0.00027945,2]
[357459178,1744073485641,-568.42,0.00027945,2]
[357459179,1744073485651,-595.32,0.00027945,2]
[357459180,1744073485662,-185.64,0.00027945,2]
[357459181,1744073485672,-1478.81,0.00027945,2]
[357459182,1744073485682,-523.17,0.00027945,2]
[357459183,1744073485691,-1266.69,0.00027945,2]
[357459184,1744073485702,-442.522977,0.00027945,7]
[357459185,1744073485711,-442.522977,0.00027945,7]
[357459186,1744073485721,-1197.93,0.00027945,2]
[357459187,1744073485732,-528.61,0.00027945,2]
[357459188,1744073485742,-878.01,0.00027945,2]
[357459189,1744073485751,-993.51,0.00027945,2]
[357459190,1744073485761,-1465.53,0.00027945,2]
[357459191,1744073485771,-545.8,0.00027945,2]
[357459192,1744073485781,-689.47,0.00027945,2]
[357459193,1744073485791,-591.84,0.00027945,2]
[357459194,1744073485800,-175.39,0.00027945,2]
[357459195,1744073485810,-1000.21,0.00027945,2]
[357459196,1744073485819,-1104.26,0.00027945,2]
[357459197,1744073485934,-518.15,0.00027945,2]
[357459198,1744073485950,-500.0,0.00027945,2]
[357459199,1744073485961,-1404.5,0.00027945,2]
[357459200,1744073485971,-522.25,0.00027945,2]
[357459201,1744073485984,-1550.56,0.00027945,2]
[357459202,1744073485995,-559.21,0.00027945,2]
[357459203,1744073486006,-1304.88,0.00027945,2]
[357459204,1744073486017,-2906.86,0.00027945,2]
[357459205,1744073486028,-636.08,0.00027945,2]
[357459206,1744073486040,-567.46,0.00027945,2]
[357459207,1744073486051,-1332.6,0.00027945,2]
[357459208,1744073486061,-2435.82,0.00027945,2]
[357459209,1744073486071,-564.44,0.00027945,2]
[357459210,1744073486081,-816.67,0.00027945,2]
[357459211,1744073486091,-2284.41,0.00027945,2]
[357459212,1744073486102,-539.99,0.00027945,2]
[357459213,1744073486117,-774.84,0.00027945,2]
[357459214,1744073486127,-1559.28,0.00027945,2]
[357459215,1744073486137,-1168.9,0.00027945,2]